fUST/lending_fUST_20250707
["ID","MTS","AMOUNT","RATE_DAILY","PERIOD"]
[370150380,1751902254937,-460.0,0.00020273,2]
[370150381,1751902254948,-2283.97,0.00020273,2]
[370150382,1751902254963,-460.0,0.00020273,2]
[370150383,1751902254973,-460.0,0.00020273,2]
[370150384,1751902254982,-460.0,0.00020273,2]
[370150385,1751902254991,-1825.71,0.00020273,2]
[370150386,1751902255000,-609.87,0.00020273,2]
[370150387,1751902255010,-605.3,0.00020273,2]
[370150388,1751902255019,-460.0,0.00020273,2]
[370150389,1751902255028,-460.0,0.00020273,2]
[370150390,1751902255038,-1452.1,0.00020273,2]
[370150391,1751902255047,-806.99,0.00020273,2]
[370150392,1751902255057,-460.0,0.00020273,2]
[370150393,1751902255067,-460.0,0.00020273,2]
[370150394,1751902255076,-460.0,0.00020273,2]
[370150395,1751902255086,-794.11,0.00020273,2]
[370150396,1751902255095,-460.0,0.00020273,2]
[370150397,1751902255105,-460.0,0.00020273,2]
[370150398,1751902255115,-375.52209228,0.00020273,2]
[370150399,1751902255125,-460.0,0.00020273,2]
[370150400,1751902255136,-460.0,0.00020273,2]
[370150401,1751902255146,-460.0,0.00020273,2]
[370150402,1751902255156,-460.0,0.00020273,2]
[370150403,1751902255166,-460.0,0.00020273,2]
[370150404,1751902255175,-460.0,0.00020273,2]
[370150405,1751902255185,-460.0,0.00020273,2]
[370150406,1751902255195,-2047.51,0.00020273,2]
[370150407,1751902255205,-460.0,0.00020273,2]
[370150408,1751902255215,-1212.62,0.00020273,2]
[370150409,1751902255224,-3177.42,0.00020273,2]
[370150410,1751902255234,-460.0,0.00020273,2]
[370150411,1751902255243,-905.91,0.00020273,2]
[370150412,1751902255253,-2893.29,0.00020273,2]
[370150413,1751902255263,-460.0,0.00020273,2]
[370150414,1751902255272,-482.61461814,0.00020273,2]
[370150415,1751902255282,-460.0,0.00020273,2]
[370150416,1751902255291,-1546.63,0.00020273,2]
[370150417,1751902255301,-460.0,0.00020273,2]
[370150418,1751902255311,-460.0,0.00020273,2]
[370150419,1751902255321,-460.0,0.00020273,2]
[370150420,1751902255331,-330.325732,0.00020273,2]
[370150421,1751902255340,-1364.85,0.00020273,2]
[370150422,1751902255349,-460.0,0.00020273,2]
[370150423,1751902255359,-460.0,0.00020273,2]
[370150424,1751902255368,-460.0,0.00020273,2]
[370150425,1751902255378,-460.0,0.00020273,2]
[370150426,1751902255387,-460.0,0.00020273,2]
[370150427,1751902255396,-460.0,0.00020273,2]
[370150428,1751902255407,-460.0,0.00020273,2]
[370150429,1751902255417,-330.325732,0.00020273,2]
[370150430,1751902255427,-460.0,0.00020273,2]
[370150431,1751902255437,-1494.13,0.00020273,2]
[370150432,1751902255449,-802.87,0.00020273,2]
[370150433,1751902255459,-460.0,0.00020273,2]
[370150434,1751902255470,-460.0,0.00020273,2]
[370150435,1751902255481,-151.0,0.00020273,2]
[370150436,1751902255492,-460.0,0.00020273,2]
[370150437,1751902255503,-460.0,0.00020273,2]
[370150438,1751902255515,-460.0,0.00020273,2]
[370150439,1751902255525,-3392.7,0.00020273,2]
[370150440,1751902255535,-460.0,0.00020273,2]
[370150441,1751902255544,-460.0,0.00020273,2]
[370150442,1751902255558,-460.0,0.00020273,2]
[370150443,1751902255567,-151.0,0.00020273,2]
[370150444,1751902255577,-492.72,0.00020273,2]
[370150445,1751902255588,-460.0,0.00020273,2]
[370150446,1751902255599,-460.0,0.00020273,2]
[370150447,1751902255610,-1364.41,0.00020273,2]
[370150448,1751902255620,-460.0,0.00020273,2]
[370150449,1751902255631,-633.12,0.00020273,2]
[370150450,1751902255640,-460.0,0.00020273,2]
[370150451,1751902255652,-460.0,0.00020273,2]
[370150452,1751902255663,-460.0,0.00020273,2]
[370150453,1751902255672,-460.0,0.00020273,2]
[370150454,1751902255681,-460.0,0.00020273,2]
[370150455,1751902255691,-460.0,0.00020273,2]
[370150456,1751902255701,-743.98,0.00020273,2]
[370150457,1751902255711,-460.0,0.00020273,2]
[370150458,1751902255722,-460.0,0.00020273,2]
[370150459,1751902255732,-3356.78,0.00020273,2]
[370150460,1751902255742,-460.0,0.00020273,2]
[370150461,1751902255753,-460.0,0.00020273,2]
[370150462,1751902255763,-460.0,0.00020273,2]
[370150463,1751902255773,-460.0,0.00020273,2]
[370150464,1751902255784,-556.0,0.00020273,2]
[370150465,1751902255794,-460.0,0.00020273,2]
[370150466,1751902255803,-460.0,0.00020273,2]
[370150467,1751902255812,-1822.72,0.00020273,2]
[370150468,1751902255822,-151.0,0.00020273,2]
[370150469,1751902255833,-460.0,0.00020273,2]
[370150470,1751902255842,-460.0,0.00020273,2]
[370150471,1751902255852,-172.220274,0.00020273,2]
[370150472,1751902255861,-460.0,0.00020273,2]
[370150473,1751902255873,-460.0,0.00020273,2]
[370150474,1751902255882,-460.0,0.00020273,2]
[370150475,1751902255892,-460.0,0.00020273,2]
[370150476,1751902255903,-460.0,0.00020273,2]
[370150477,1751902255913,-1115.59819256,0.00020275,2]
[370150478,1751902255923,-151.0,0.000203,3]
[370150479,1751902255933,-2376.37376573,0.00020314,3]
[370150480,1751902255944,-3529.12,0.00020388,2]
[370150481,1751902255955,-151.0,0.000204,3]
[370150482,1751902255966,-4000.0,0.00020426,2]
[370150483,1751902255976,-173.37575435,0.00020466,2]
[370150484,1751902255986,-5000.0,0.00020466,2]
[370150485,1751902255996,-151.0,0.00020466,2]
[370150486,1751902256005,-661.23047706,0.00020466,2]
[370150487,1751902256015,-207.4,0.00020466,2]
[370150488,1751902256026,-151.0,0.00020466,2]
[370150489,1751902256035,-151.0,0.00020466,2]
[370150490,1751902256045,-151.0,0.00020466,2]
[370150491,1751902256055,-151.0,0.00020466,2]
[370150492,1751902256065,-151.0,0.00020466,2]
[370150493,1751902256075,-156.47300058,0.00020466,2]
[370150494,1751902256084,-151.0,0.00020466,2]
[370150495,1751902256094,-151.0,0.00020466,2]
[370150496,1751902256104,-500.0,0.00020466,2]
[370150497,1751902256115,-151.0,0.00020466,2]
[370150498,1751902256126,-151.0,0.00020466,2]
[370150499,1751902256135,-151.0,0.00020466,2]
[370150500,1751902256147,-151.0,0.00020466,2]
[370150501,1751902256156,-151.0,0.00020466,2]
[370150502,1751902256165,-151.0,0.00020466,2]
[370150503,1751902256174,-151.0,0.00020466,2]
[370150504,1751902256184,-196.51428338,0.00020466,2]
[370150505,1751902256195,-151.0,0.00020466,2]
[370150506,1751902256204,-6000.0,0.00020489,2]
[370150507,1751902256214,-151.0,0.00020489,2]
[370150508,1751902256224,-151.0,0.000205,4]
[370150509,1751902256234,-1000.0,0.00020521,2]
[370150510,1751902256244,-1000.0,0.00020521,2]
[370150511,1751902256254,-892.70875722,0.00020521,2]
[370150512,1751902256265,-836.85138482,0.00020521,2]
[370150513,1751902256274,-1200.0,0.00020521,2]
[370150514,1751902256284,-1000.0,0.00020521,2]
[370150515,1751902256297,-883.50705906,0.00020521,2]
[370150516,1751902256306,-1137.30663764,0.00020521,2]
[370150517,1751902256315,-1000.0,0.00020521,2]
[370150518,1751902256324,-1000.0,0.00020521,2]
[370150519,1751902256333,-1000.0,0.00020521,2]
[370150520,1751902256342,-1000.0,0.00020521,2]
[370150521,1751902256352,-1000.0,0.00020521,2]
[370150522,1751902256361,-1000.0,0.00020521,2]
[370150523,1751902256371,-2376.37376573,0.00020521,3]
[370150524,1751902256380,-330.325732,0.00020521,2]
[370150525,1751902256389,-330.325732,0.00020521,2]
[370150526,1751902256399,-151.0,0.00020521,2]
[370150527,1751902256408,-151.0,0.00020521,2]
[370150528,1751902256417,-160.0,0.00020538,3]
[370150529,1751902256427,-160.0,0.00020538,3]
[370150530,1751902256436,-214.06929976,0.00020538,3]
[370150531,1751902256537,-12584.46609586,0.00020538,3]
[370150532,1751902256549,-848.27993403,0.00020538,3]
[370150533,1751902256560,-293.45627482,0.00020546,2]
[370150534,1751902256570,-460.0,0.00020547,2]
[370150535,1751902256580,-460.0,0.00020547,2]
[370150536,1751902256589,-151.68,0.00020547,2]
[370150537,1751902256599,-387.53,0.00020547,2]
[370150538,1751902256608,-460.0,0.00020547,2]
[370150539,1751902256617,-460.0,0.00020547,2]
[370150540,1751902256628,-460.0,0.00020547,2]
[370150541,1751902256637,-460.0,0.00020547,2]
[370150542,1751902256646,-164.44,0.00020547,2]
[370150543,1751902256655,-460.0,0.00020547,2]
[370150544,1751902256664,-460.0,0.00020547,2]
[370150545,1751902256673,-460.0,0.00020547,2]
[370150546,1751902256683,-460.0,0.00020547,2]
[370150547,1751902256692,-460.0,0.00020547,2]
[370150548,1751902256701,-460.0,0.00020547,2]
[370150549,1751902256712,-460.0,0.00020547,2]
[370150550,1751902256722,-151.0,0.00020547,2]
[370150551,1751902256734,-181.97164219,0.00020547,2]
[370150552,1751902256743,-460.0,0.00020547,2]
[370150553,1751902256752,-460.0,0.00020547,2]
[370150554,1751902256762,-296.367576,0.00020547,2]
[370150555,1751902256772,-460.0,0.00020547,2]
[370150556,1751902256781,-410.362489,0.00020547,2]
[370150557,1751902256790,-410.362489,0.00020547,2]
[370150558,1751902256801,-460.0,0.00020547,2]
[370150559,1751902256810,-460.0,0.00020547,2]
[370150560,1751902256820,-572.85,0.00020547,2]
[370150561,1751902256829,-460.0,0.00020547,2]
[370150562,1751902256839,-463.93,0.00020547,2]
[370150563,1751902256850,-460.0,0.00020547,2]
[370150564,1751902256859,-460.0,0.00020547,2]
[370150565,1751902256870,-460.0,0.00020547,2]
[370150566,1751902256879,-460.0,0.00020547,2]
[370150567,1751902256889,-460.0,0.00020547,2]
[370150568,1751902256898,-460.0,0.00020547,2]
[370150569,1751902256907,-460.0,0.00020547,2]
[370150570,1751902256916,-460.0,0.00020547,2]
[370150571,1751902256926,-151.0,0.00020547,2]
[370150572,1751902256936,-166.422905,0.00020547,2]
[370150573,1751902256946,-460.0,0.00020547,2]
[370150574,1751902256957,-460.0,0.00020547,2]
[370150575,1751902256968,-151.0,0.00020547,2]
[370150576,1751902256979,-460.0,0.00020547,2]
[370150577,1751902256989,-460.0,0.00020547,2]
[370150578,1751902256999,-460.0,0.00020547,2]
[370150579,1751902257008,-460.0,0.00020547,2]
[370150580,1751902257018,-460.0,0.00020547,2]
[370150581,1751902257029,-510.37,0.00020547,2]
[370150582,1751902257038,-460.0,0.00020547,2]
[370150583,1751902257048,-460.0,0.00020547,2]
[370150584,1751902257058,-460.0,0.00020547,2]
[370150585,1751902257067,-460.0,0.00020547,2]
[370150586,1751902257077,-460.0,0.00020547,2]
[370150587,1751902257086,-460.0,0.00020547,2]
[370150588,1751902257096,-460.0,0.00020547,2]
[370150589,1751902257106,-524.45,0.00020547,2]
[370150590,1751902257115,-460.0,0.00020547,2]
[370150591,1751902257125,-460.0,0.00020547,2]
[370150592,1751902257134,-2032.09,0.00020547,2]
[370150593,1751902257145,-460.0,0.00020547,2]
[370150594,1751902257154,-605.66,0.00020547,2]
[370150595,1751902257165,-460.0,0.00020547,2]
[370150596,1751902257174,-460.0,0.00020547,2]
[370150597,1751902257184,-151.0,0.00020547,2]
[370150598,1751902257193,-460.0,0.00020547,2]
[370150599,1751902257203,-460.0,0.00020547,2]
[370150600,1751902257213,-460.0,0.00020547,2]
[370150601,1751902257223,-2283.97,0.00020547,2]
[370150602,1751902257232,-460.0,0.00020547,2]
[370150603,1751902257242,-460.0,0.00020547,2]
[370150604,1751902257251,-1825.71,0.00020547,2]
[370150605,1751902257261,-609.87,0.00020547,2]
[370150606,1751902257271,-605.3,0.00020547,2]
[370150607,1751902257280,-460.0,0.00020547,2]
[370150608,1751902257290,-460.0,0.00020547,2]
[370150609,1751902257299,-1452.1,0.00020547,2]
[370150610,1751902257309,-806.99,0.00020547,2]
[370150611,1751902257319,-460.0,0.00020547,2]
[370150612,1751902257329,-460.0,0.00020547,2]
[370150613,1751902257339,-460.0,0.00020547,2]
[370150614,1751902257358,-794.11,0.00020547,2]
[370150615,1751902257370,-460.0,0.00020547,2]
[370150616,1751902257380,-460.0,0.00020547,2]
[370150617,1751902257390,-216.26555427,0.00020547,2]
[370150618,1751902257399,-460.0,0.00020547,2]
[370150619,1751902257409,-460.0,0.00020547,2]
[370150620,1751902257419,-460.0,0.00020547,2]
[370150621,1751902257428,-407.43974513,0.00020547,2]
[370150622,1751902257438,-460.0,0.00020547,2]
[370150623,1751902257447,-460.0,0.00020547,2]
[370150624,1751902257458,-2047.51,0.00020547,2]
[370150625,1751902257468,-460.0,0.00020547,2]
[370150626,1751902257479,-1212.62,0.00020547,2]
[370150627,1751902257489,-3177.42,0.00020547,2]
[370150628,1751902257501,-460.0,0.00020547,2]
[370150629,1751902257511,-905.91,0.00020547,2]
[370150630,1751902257521,-2893.29,0.00020547,2]
[370150631,1751902257531,-460.0,0.00020547,2]
[370150632,1751902257540,-460.0,0.00020547,2]
[370150633,1751902257553,-460.0,0.00020547,2]
[370150634,1751902257563,-1546.63,0.00020547,2]
[370150635,1751902257572,-460.0,0.00020547,2]
[370150636,1751902257582,-1364.85,0.00020547,2]
[370150637,1751902257593,-460.0,0.00020547,2]
[370150638,1751902257602,-330.325732,0.00020547,2]
[370150639,1751902257611,-460.0,0.00020547,2]
[370150640,1751902257621,-460.0,0.00020547,2]
[370150641,1751902257631,-460.0,0.00020547,2]
[370150642,1751902257641,-460.0,0.00020547,2]
[370150643,1751902257650,-460.0,0.00020547,2]
[370150644,1751902257660,-460.0,0.00020547,2]
[370150645,1751902257669,-330.325732,0.00020547,2]
[370150646,1751902257679,-460.0,0.00020547,2]
[370150647,1751902257688,-1494.13,0.00020547,2]
[370150648,1751902257698,-802.87,0.00020547,2]
[370150649,1751902257707,-460.0,0.00020547,2]
[370150650,1751902257716,-460.0,0.00020547,2]
[370150651,1751902257725,-151.0,0.00020547,2]
[370150652,1751902257735,-460.0,0.00020547,2]
[370150653,1751902257744,-460.0,0.00020547,2]
[370150654,1751902257754,-460.0,0.00020547,2]
[370150655,1751902257763,-3392.7,0.00020547,2]
[370150656,1751902257772,-460.0,0.00020547,2]
[370150657,1751902257782,-460.0,0.00020547,2]
[370150658,1751902257791,-460.0,0.00020547,2]
[370150659,1751902257801,-151.0,0.00020547,2]
[370150660,1751902257810,-492.72,0.00020547,2]
[370150661,1751902257820,-460.0,0.00020547,2]
[370150662,1751902257831,-460.0,0.00020547,2]
[370150663,1751902257843,-1364.41,0.00020547,2]
[370150664,1751902257854,-633.12,0.00020547,2]
[370150665,1751902257864,-319.52,0.00020547,2]
[370150666,1751902257873,-460.0,0.00020547,2]
[370150667,1751902257883,-460.0,0.00020547,2]
[370150668,1751902257894,-460.0,0.00020547,2]
[370150669,1751902257904,-460.0,0.00020547,2]
[370150670,1751902257914,-461.36588459,0.00020547,2]
[370150671,1751902257924,-460.0,0.00020547,2]
[370150672,1751902257934,-500.0,0.00020547,14]
[370150673,1751902257946,-743.98,0.00020547,2]
[370150674,1751902257956,-460.0,0.00020547,2]
[370150675,1751902257966,-460.0,0.00020547,2]
[370150676,1751902257976,-3356.78,0.00020547,2]
[370150677,1751902257989,-460.0,0.00020547,2]
[370150678,1751902257999,-460.0,0.00020547,2]
[370150679,1751902258009,-460.0,0.00020547,2]
[370150680,1751902258019,-460.0,0.00020547,2]
[370150681,1751902258031,-556.0,0.00020547,2]
[370150682,1751902258040,-460.0,0.00020547,2]
[370150683,1751902258050,-460.0,0.00020547,2]
[370150684,1751902258060,-1822.72,0.00020547,2]
[370150685,1751902258069,-151.0,0.00020547,2]
[370150686,1751902258078,-460.0,0.00020547,2]
[370150687,1751902258088,-460.0,0.00020547,2]
[370150688,1751902258098,-460.0,0.00020547,2]
[370150689,1751902258107,-460.0,0.00020547,2]
[370150690,1751902258226,-460.0,0.00020547,2]
[370150691,1751902258243,-460.0,0.00020547,2]
[370150692,1751902258252,-1500.0,0.00020568,2]
[370150693,1751902258262,-1500.0,0.00020568,2]
[370150694,1751902258272,-151.0,0.000206,2]
[370150695,1751902258281,-151.0,0.000206,2]
[370150696,1751902258290,-176.778613,0.000206,2]
[370150697,1751902258299,-176.778613,0.000206,2]
[370150698,1751902258309,-262.812122,0.000206,2]
[370150699,1751902258318,-262.812122,0.000206,2]
[370150700,1751902258327,-2208.08,0.000206,2]
[370150701,1751902258337,-151.0,0.000206,2]
[370150702,1751902258347,-593.816,0.00020617,2]
[370150703,1751902258357,-181.479961,0.00020691,2]
[370150704,1751902258366,-151.0,0.000207,3]
[370150705,1751902258379,-2376.37376573,0.00020728,3]
[370150706,1751902258389,-150.0,0.00020736,30]
[370150707,1751902258399,-1115.59819256,0.00020772,2]
[370150708,1751902258408,-658.98816494,0.00020789,2]
[370150709,1751902258417,-500.0,0.0002082,10]
[370150710,1751902258427,-460.0,0.00020821,2]
[370150711,1751902258436,-460.0,0.00020821,2]
[370150712,1751902258445,-460.0,0.00020821,2]
[370150713,1751902258454,-435.02,0.00020821,2]
[370150714,1751902258463,-460.0,0.00020821,2]
[370150715,1751902258472,-460.0,0.00020821,2]
[370150716,1751902258481,-460.0,0.00020821,2]
[370150717,1751902258490,-460.0,0.00020821,2]
[370150718,1751902258500,-366.48812711,0.00020821,2]
[370150719,1751902258510,-460.0,0.00020821,2]
[370150720,1751902258519,-540.0,0.00020821,2]
[370150721,1751902258528,-460.0,0.00020821,2]
[370150722,1751902258537,-415.13182712,0.00020821,2]
[370150723,1751902258548,-460.0,0.00020821,2]
[370150724,1751902258558,-460.0,0.00020821,2]
[370150725,1751902258568,-460.0,0.00020821,2]
[370150726,1751902258577,-335.62,0.00020821,2]
[370150727,1751902258587,-460.0,0.00020821,2]
[370150728,1751902258598,-460.0,0.00020821,2]
[370150729,1751902258607,-460.0,0.00020821,2]
[370150730,1751902258616,-460.0,0.00020821,2]
[370150731,1751902258626,-151.0,0.00020821,2]
[370150732,1751902258635,-460.0,0.00020821,2]
[370150733,1751902258645,-460.0,0.00020821,2]
[370150734,1751902258654,-207.186987,0.00020821,2]
[370150735,1751902258663,-460.0,0.00020821,2]
[370150736,1751902258673,-460.0,0.00020821,2]
[370150737,1751902258682,-460.0,0.00020821,2]
[370150738,1751902258691,-460.0,0.00020821,2]
[370150739,1751902258700,-460.0,0.00020821,2]
[370150740,1751902258709,-460.0,0.00020821,2]
[370150741,1751902258719,-460.0,0.00020821,2]
[370150742,1751902258728,-536.12,0.00020821,2]
[370150743,1751902258737,-460.0,0.00020821,2]
[370150744,1751902258746,-460.0,0.00020821,2]
[370150745,1751902258755,-460.0,0.00020821,2]
[370150746,1751902258765,-524.45,0.00020821,2]
[370150747,1751902258774,-460.0,0.00020821,2]
[370150748,1751902258783,-239.6699206,0.00020821,2]
[370150749,1751902258792,-2032.09,0.00020821,2]
[370150750,1751902258801,-460.0,0.00020821,2]
[370150751,1751902258812,-605.66,0.00020821,2]
[370150752,1751902258823,-460.0,0.00020821,2]
[370150753,1751902258832,-460.0,0.00020821,2]
[370150754,1751902258842,-460.0,0.00020821,2]
[370150755,1751902258851,-460.0,0.00020821,2]
[370150756,1751902258861,-2283.97,0.00020821,2]
[370150757,1751902258870,-460.0,0.00020821,2]
[370150758,1751902258879,-1825.71,0.00020821,2]
[370150759,1751902258889,-609.87,0.00020821,2]
[370150760,1751902258898,-605.3,0.00020821,2]
[370150761,1751902258907,-460.0,0.00020821,2]
[370150762,1751902258916,-460.0,0.00020821,2]
[370150763,1751902258925,-1452.1,0.00020821,2]
[370150764,1751902258935,-806.99,0.00020821,2]
[370150765,1751902258943,-460.0,0.00020821,2]
[370150766,1751902258953,-460.0,0.00020821,2]
[370150767,1751902258962,-460.0,0.00020821,2]
[370150768,1751902258971,-794.11,0.00020821,2]
[370150769,1751902258980,-460.0,0.00020821,2]
[370150770,1751902258989,-460.0,0.00020821,2]
[370150771,1751902258998,-460.0,0.00020821,2]
[370150772,1751902259007,-460.0,0.00020821,2]
[370150773,1751902259016,-460.0,0.00020821,2]
[370150774,1751902259025,-460.0,0.00020821,2]
[370150775,1751902259034,-460.0,0.00020821,2]
[370150776,1751902259043,-2047.51,0.00020821,2]
[370150777,1751902259052,-460.0,0.00020821,2]
[370150778,1751902259062,-1212.62,0.00020821,2]
[370150779,1751902259071,-3177.42,0.00020821,2]
[370150780,1751902259080,-460.0,0.00020821,2]
[370150781,1751902259089,-905.91,0.00020821,2]
[370150782,1751902259098,-2893.29,0.00020821,2]
[370150783,1751902259107,-460.0,0.00020821,2]
[370150784,1751902259116,-460.0,0.00020821,2]
[370150785,1751902259126,-460.0,0.00020821,2]
[370150786,1751902259136,-1546.63,0.00020821,2]
[370150787,1751902259145,-460.0,0.00020821,2]
[370150788,1751902259155,-1364.85,0.00020821,2]
[370150789,1751902259164,-460.0,0.00020821,2]
[370150790,1751902259173,-330.325732,0.00020821,2]
[370150791,1751902259182,-460.0,0.00020821,2]
[370150792,1751902259192,-460.0,0.00020821,2]
[370150793,1751902259201,-460.0,0.00020821,2]
[370150794,1751902259210,-460.0,0.00020821,2]
[370150795,1751902259220,-460.0,0.00020821,2]
[370150796,1751902259229,-460.0,0.00020821,2]
[370150797,1751902259239,-330.325741,0.00020821,2]
[370150798,1751902259249,-460.0,0.00020821,2]
[370150799,1751902259258,-1494.13,0.00020821,2]
[370150800,1751902259267,-802.87,0.00020821,2]
[370150801,1751902259277,-460.0,0.00020821,2]
[370150802,1751902259288,-460.0,0.00020821,2]
[370150803,1751902259298,-151.0,0.00020821,2]
[370150804,1751902259309,-460.0,0.00020821,2]
[370150805,1751902259319,-460.0,0.00020821,2]
[370150806,1751902259328,-3392.7,0.00020821,2]
[370150807,1751902259338,-460.0,0.00020821,2]
[370150808,1751902259347,-460.0,0.00020821,2]
[370150809,1751902259357,-460.0,0.00020821,2]
[370150810,1751902259367,-460.0,0.00020821,2]
[370150811,1751902259377,-492.72,0.00020821,2]
[370150812,1751902259386,-460.0,0.00020821,2]
[370150813,1751902259395,-460.0,0.00020821,2]
[370150814,1751902259405,-1364.41,0.00020821,2]
[370150815,1751902259414,-633.12,0.00020821,2]
[370150816,1751902259424,-460.0,0.00020821,2]
[370150817,1751902259433,-460.0,0.00020821,2]
[370150818,1751902259443,-460.0,0.00020821,2]
[370150819,1751902259452,-460.0,0.00020821,2]
[370150820,1751902259462,-508.18701476,0.00020821,2]
[370150821,1751902259472,-743.98,0.00020821,2]
[370150822,1751902259481,-460.0,0.00020821,2]
[370150823,1751902259491,-460.0,0.00020821,2]
[370150824,1751902259501,-3356.78,0.00020821,2]
[370150825,1751902259512,-460.0,0.00020821,2]
[370150826,1751902259522,-460.0,0.00020821,2]
[370150827,1751902259532,-460.0,0.00020821,2]
[370150828,1751902259545,-556.0,0.00020821,2]
[370150829,1751902259558,-460.0,0.00020821,2]
[370150830,1751902259568,-460.0,0.00020821,2]
[370150831,1751902259577,-1822.72,0.00020821,2]
[370150832,1751902259587,-151.0,0.00020821,2]
[370150833,1751902259596,-460.0,0.00020821,2]
[370150834,1751902259606,-460.0,0.00020821,2]
[370150835,1751902259615,-460.0,0.00020821,2]
[370150836,1751902259629,-460.0,0.00020821,2]
[370150837,1751902259727,-460.0,0.00020821,2]
[370150838,1751902259739,-460.0,0.00020821,2]
[370150839,1751902259749,-6747.66324096,0.00020844,2]
[370150840,1751902259758,-164.79027,0.00020876,2]
[370150841,1751902259767,-1792.0,0.00020881,2]
[370150842,1751902259777,-420.0,0.00020888,2]
[370150843,1751902259786,-151.0,0.000209,3]
[370150844,1751902259796,-151.0,0.000209,4]
[370150845,1751902259807,-2376.37376573,0.00020934,4]
[370150846,1751902259816,-151.0,0.00020948,2]
[370150847,1751902259827,-1792.0,0.00020949,2]
[370150848,1751902259837,-128577.26814925,0.00021,2]
[370150849,1751902259849,-151.0,0.00021063,2]
[370150850,1751902259859,-410.362489,0.00021063,2]
[370150851,1751902259870,-410.362489,0.00021063,2]
[370150852,1751902259881,-188.85272705,0.00021068,2]
[370150853,1751902259891,-1800.0,0.00021068,2]
[370150854,1751902259900,-1500.0,0.00021068,2]
[370150855,1751902259911,-1000.0,0.00021068,2]
[370150856,1751902259921,-155.15941754,0.00021068,2]
[370150857,1751902259930,-1000.0,0.00021068,2]
[370150858,1751902259941,-310.7,0.00021069,4]
[370150859,1751902259951,-500.0,0.00021094,10]
[370150860,1751902259960,-460.0,0.00021095,2]
[370150861,1751902259971,-238.767645,0.00021095,2]
[370150862,1751902259980,-460.0,0.00021095,2]
[370150863,1751902259990,-507.59,0.00021095,2]
[370150864,1751902259999,-460.0,0.00021095,2]
[370150865,1751902260008,-151.0,0.00021095,2]
[370150866,1751902260019,-221.34,0.00021095,2]
[370150867,1751902260029,-151.0,0.00021095,2]
[370150868,1751902260040,-176.778613,0.00021095,2]
[370150869,1751902260049,-176.778613,0.00021095,2]
[370150870,1751902260059,-453.27,0.00021095,2]
[370150871,1751902260069,-262.812122,0.00021095,2]
[370150872,1751902260079,-460.0,0.00021095,2]
[370150873,1751902260088,-262.812122,0.00021095,2]
[370150874,1751902260097,-248.1594108,0.00021095,2]
[370150875,1751902260108,-338.80095114,0.00021095,2]
[370150876,1751902260119,-460.0,0.00021095,2]
[370150877,1751902260128,-460.0,0.00021095,2]
[370150878,1751902260138,-460.0,0.00021095,2]
[370150879,1751902260148,-460.0,0.00021095,2]